bitfinex/quotes_BTCUSD_20240911
["timestamp","ask_amount","ask_price","bid_price","bid_amount"]
[1726058422825,0.18034974,56705.0,56694.0,0.00163]
[1726058423130,0.1859,56703.0,56694.0,0.00163]
[1726058423366,0.26774018,56699.0,56694.0,0.00163]
[1726058423601,0.35155073,56699.0,56694.0,0.00163]
[1726058423817,0.3567058,56699.0,56694.0,0.00163]
[1726058424042,0.35229525,56699.0,56694.0,0.00163]
[1726058424271,0.31714018,56699.0,56694.0,0.00163]
[1726058424738,0.32155032,56699.0,56694.0,0.00163]
[1726058424961,0.32155032,56699.0,56698.0,0.002634]
[1726058425187,0.33114018,56699.0,56698.0,0.001634]
[1726058425412,0.33555059,56699.0,56698.0,0.001634]
[1726058425676,0.33255059,56699.0,56698.0,0.002634]
[1726058427035,0.33229239,56699.0,56698.0,0.002634]
[1726058427281,0.34029239,56699.0,56698.0,0.002634]
[1726058427500,0.34003922,56699.0,56698.0,0.002634]
[1726058428172,0.40724314,56699.0,56698.0,0.002634]
[1726058428437,0.40724314,56699.0,56694.0,0.00163]
[1726058428438,0.2317,56695.0,56694.0,0.00163]
[1726058428670,0.58843336,56695.0,56694.0,0.00163]
[1726058428887,0.71143336,56695.0,56694.0,0.00163]
[1726058429112,0.50764018,56695.0,56694.0,0.00163]
[1726058429335,0.50764018,56695.0,56689.0,0.001632]
[1726058429336,0.397497,56690.0,56689.0,0.001632]
[1726058429577,0.57543718,56690.0,56689.0,0.001632]
[1726058429815,1.0913752,56690.0,56689.0,0.001632]
[1726058430026,1.6205672,56690.0,56689.0,0.001632]
[1726058430482,1.9733622,56690.0,56689.0,0.001632]
[1726058430768,2.14953175,56690.0,56689.0,0.001632]
[1726058431235,0.266429,56680.0,56679.0,0.0062452]
[1726058431473,1.07488747,56680.0,56679.0,0.0062452]
[1726058431699,1.07688747,56680.0,56679.0,0.0062452]
[1726058431915,0.63207988,56680.0,56679.0,0.0062452]
[1726058432132,0.42797886,56680.0,56679.0,0.0062452]
[1726058432392,0.35797886,56680.0,56679.0,0.0062452]
[1726058432619,0.36997886,56680.0,56679.0,0.0062452]
[1726058433545,1.17574288,56680.0,56679.0,0.0062452]
[1726058433752,1.09931388,56680.0,56679.0,0.0062452]
[1726058433972,1.20944527,56680.0,56679.0,0.0062452]
[1726058434191,1.21144527,56680.0,56679.0,0.0062452]
[1726058434637,1.22144527,56680.0,56679.0,0.0062452]
[1726058435067,1.21944527,56680.0,56679.0,0.0062452]
[1726058435281,1.21144527,56680.0,56679.0,0.0062452]
[1726058435505,1.19944527,56680.0,56679.0,0.0062452]
[1726058435722,0.64411025,56680.0,56679.0,0.0062452]
[1726058435957,0.54597886,56680.0,56679.0,0.0062452]
[1726058436183,0.53197886,56680.0,56679.0,0.0062452]
[1726058436419,1.29374288,56680.0,56679.0,0.0062452]
[1726058436665,0.1063,56667.0,56659.0,0.52782518]
[1726058436878,0.17594018,56665.0,56659.0,0.52782518]
[1726058437109,0.18035292,56664.0,56652.0,0.063]
[1726058437333,0.19701563,56664.0,56652.0,0.063]
[1726058437777,1.03565065,56664.0,56641.0,0.06743]
[1726058438204,1.00565065,56664.0,56641.0,0.06743]
[1726058438416,0.51485369,56664.0,56641.0,0.06743]
[1726058438635,0.27190289,56664.0,56648.0,0.57096502]
[1726058438871,0.19260289,56664.0,56663.0,0.06703]
[1726058439099,0.20660289,56664.0,56663.0,0.06703]
[1726058440023,0.01666271,56664.0,56663.0,0.06703]
[1726058440478,0.27774366,56664.0,56663.0,0.00163]
[1726058440691,0.29751803,56664.0,56663.0,0.00163]
[1726058440906,0.30193114,56664.0,56663.0,0.00163]
[1726058441333,0.28015677,56664.0,56663.0,0.00163]
[1726058441985,0.37015692,56664.0,56663.0,0.0041032]
[1726058442207,0.37715692,56664.0,56663.0,0.0041032]
[1726058442456,0.44515692,56664.0,56663.0,0.0041032]
[1726058442684,0.42315692,56664.0,56663.0,0.0041032]
[1726058442901,0.53520611,56664.0,56663.0,0.0041032]
[1726058443124,0.45315692,56664.0,56663.0,0.0041032]
[1726058443643,0.45315692,56664.0,56656.0,0.0021609]
[1726058443644,0.03,56659.0,56656.0,0.0021609]
[1726058443844,0.17594018,56657.0,56656.0,0.0021609]
[1726058444265,0.30384366,56657.0,56656.0,0.0021609]
[1726058444679,1.09794507,56657.0,56656.0,0.0021609]
[1726058444883,1.42153788,56657.0,56656.0,0.0021609]
[1726058445089,1.77453888,56657.0,56656.0,0.0021609]
[1726058445305,1.26803788,56657.0,56656.0,0.0021609]
[1726058445745,0.67370286,56657.0,56656.0,0.0021609]
[1726058445924,0.54261005,56657.0,56656.0,0.0021609]
[1726058446144,0.48261005,56657.0,56656.0,0.0021609]
[1726058446381,0.39141005,56657.0,56656.0,0.0021609]
[1726058446587,0.43541005,56657.0,56656.0,0.0021609]
[1726058447471,0.42141005,56657.0,56656.0,0.0021609]
[1726058447693,0.46955106,56657.0,56656.0,0.0021609]
[1726058447886,0.48355106,56657.0,56656.0,0.0021609]
[1726058448092,0.46955106,56657.0,56656.0,0.0021609]
[1726058448345,0.70805106,56657.0,56656.0,0.0021609]
[1726058448565,1.11488608,56657.0,56656.0,0.0021609]
[1726058449021,1.10088608,56657.0,56656.0,0.0021609]
[1726058449266,1.09388608,56657.0,56656.0,0.0021609]
[1726058449496,1.45588708,56657.0,56656.0,0.0021609]
[1726058449737,1.27938608,56657.0,56656.0,0.0021609]
[1726058449949,1.10088608,56657.0,56656.0,0.0021609]
[1726058450131,1.10288608,56657.0,56656.0,0.0021609]
[1726058450401,1.10088608,56657.0,56656.0,0.0021609]
[1726058450604,0.53355106,56657.0,56656.0,0.0021609]
[1726058450837,0.53155106,56657.0,56656.0,0.0021609]
[1726058451294,0.47155106,56657.0,56656.0,0.0021609]
[1726058451529,0.28984366,56657.0,56656.0,0.0021609]
[1726058451765,0.31984366,56657.0,56656.0,0.0021609]
[1726058451982,0.91375812,56657.0,56656.0,0.0021609]
[1726058452200,1.33135912,56657.0,56656.0,0.0021609]
[1726058452463,1.68436012,56657.0,56656.0,0.0021609]
[1726058452712,0.621539,56653.0,56652.0,0.0037222]
[1726058452935,1.35510518,56653.0,56652.0,0.0037222]
[1726058453171,1.03568798,56649.0,56648.0,0.00163]
[1726058453380,1.33462816,56649.0,56648.0,0.00163]
[1726058453843,1.35090609,56649.0,56648.0,0.00163]
[1726058454161,0.1731,56642.0,56641.0,0.00163]
[1726058454402,1.01982818,56642.0,56641.0,0.00163]
[1726058454620,0.600788,56635.0,56621.0,0.0624]
[1726058454852,0.17594018,56632.0,56629.0,0.52782518]
[1726058455094,0.17594018,56632.0,56621.0,0.0624]
[1726058455095,0.18035536,56632.0,56621.0,0.0624]
[1726058455304,0.0044152,56631.0,56621.0,0.0624]
[1726058455515,0.17594018,56630.0,56621.0,0.0624]
[1726058455697,0.00441536,56629.0,56621.0,0.0624]
[1726058455919,0.17594018,56628.0,56621.0,0.0624]
[1726058456141,0.19397573,56628.0,56621.0,0.0624]
[1726058456378,0.01616031,56627.0,56621.0,0.0624]
[1726058456560,0.17594018,56626.0,56621.0,0.0624]
[1726058456775,0.00441544,56625.0,56621.0,0.0624]
[1726058456982,0.17594018,56624.0,56621.0,0.0624]
[1726058457211,0.19210049,56624.0,56621.0,0.0624]
[1726058457961,0.19651623,56624.0,56621.0,0.0624]
[1726058458183,0.00356431,56623.0,56621.0,0.0624]
[1726058458404,0.17950449,56623.0,56621.0,0.0624]
[1726058458614,0.17594018,56623.0,56621.0,0.0624]
[1726058458835,0.19210049,56623.0,56621.0,0.0624]
[1726058459056,0.19210049,56623.0,56618.0,0.0037222]
[1726058459498,0.19651632,56623.0,56618.0,0.0037222]
[1726058459927,0.19210049,56623.0,56618.0,0.0037222]
[1726058460146,0.19310049,56623.0,56618.0,0.0037222]
[1726058460357,0.01716031,56623.0,56618.0,0.00725467]
[1726058460582,0.01716031,56623.0,56618.0,0.0037222]
[1726058460815,0.19310049,56623.0,56618.0,0.0037222]
[1726058461025,0.21241054,56623.0,56618.0,0.0037222]
[1726058461272,0.21341054,56623.0,56618.0,0.0037222]
[1726058461790,0.39172661,56623.0,56618.0,0.0037222]
[1726058461795,0.03,56619.0,56618.0,0.0037222]
[1726058462018,0.21235694,56619.0,56618.0,0.0037222]
[1726058462245,0.48460847,56619.0,56618.0,0.0037222]
[1726058462477,0.44053723,56619.0,56618.0,0.0037222]
[1726058462705,0.49853723,56619.0,56618.0,0.0037222]
[1726058463183,0.49412047,56619.0,56618.0,0.0037222]
[1726058463647,0.44812047,56619.0,56618.0,0.0037222]
[1726058463878,0.31812047,56619.0,56618.0,0.0037222]
[1726058464145,0.22428549,56619.0,56618.0,0.0037222]
[1726058464375,0.25428549,56619.0,56618.0,0.0037222]
[1726058464624,0.21986894,56619.0,56618.0,0.0037222]
[1726058464851,0.23386894,56619.0,56618.0,0.0037222]
[1726058465318,0.21986894,56619.0,56618.0,0.0037222]
[1726058465548,0.23186894,56619.0,56618.0,0.0037222]
[1726058465794,0.23186894,56619.0,56618.0,0.0659222]
[1726058465795,0.20386894,56619.0,56618.0,0.0659222]
[1726058466016,0.20586894,56619.0,56618.0,0.0659222]
[1726058466463,0.23286894,56619.0,56618.0,0.0659222]
[1726058467175,0.21786894,56619.0,56618.0,0.0659222]
[1726058467630,0.19186894,56619.0,56618.0,0.0659222]
[1726058468065,0.20286894,56619.0,56618.0,0.0659222]
[1726058468518,0.19186894,56619.0,56618.0,0.0659222]
[1726058468727,0.19986894,56619.0,56618.0,0.0659222]
[1726058468952,0.21086894,56619.0,56618.0,0.0659222]
[1726058469436,0.19186894,56619.0,56618.0,0.0659222]
[1726058469684,0.20386894,56619.0,56618.0,0.0659222]
[1726058470334,0.02792876,56619.0,56618.0,0.0659222]
[1726058470796,0.005,56619.0,56618.0,0.0659222]
[1726058471032,0.52782518,56636.0,56618.0,0.0659222]
[1726058471291,0.17594018,56635.0,56619.0,0.0799]
[1726058471506,0.19188487,56635.0,56619.0,0.0799]
[1726058472175,0.19188487,56635.0,56624.0,0.570788]
[1726058472385,0.19188487,56635.0,56625.0,0.06593177]
[1726058472607,0.19188487,56635.0,56625.0,0.0624]
[1726058472822,0.17594018,56635.0,56626.0,0.0806]
[1726058473041,0.016,56635.0,56627.0,0.06593151]
[1726058473274,0.01594469,56634.0,56629.0,0.0615]
[1726058473518,0.01594469,56634.0,56630.0,0.0035313]
[1726058473747,0.009,56635.0,56631.0,0.0615]
[1726058473963,0.007,56635.0,56631.0,0.06503118]
[1726058474205,0.007,56635.0,56632.0,0.0829]
[1726058474435,0.4771,56653.0,56632.0,0.41515951]
[1726058474672,0.2844127,56650.0,56633.0,0.0623]
[1726058474916,0.17594018,56644.0,56633.0,0.0623]
[1726058475599,0.001,56635.0,56633.0,0.0623]
[1726058475832,0.01612791,56643.0,56633.0,0.0623]
[1726058476072,0.008,56650.0,56633.0,0.06583115]
[1726058476283,0.01612791,56642.0,56638.0,0.0756]
[1726058476491,0.17594018,56649.0,56638.0,0.0756]
[1726058476714,0.01839402,56648.0,56638.0,0.0756]
[1726058477192,0.17594018,56646.0,56633.0,0.0623]
[1726058477199,0.00441385,56647.0,56633.0,0.0623]
[1726058477200,0.17594018,56644.0,56633.0,0.0623]
[1726058477455,0.17894018,56644.0,56633.0,0.0623]
[1726058477684,0.01613375,56643.0,56633.0,0.0623]
[1726058477932,0.33227322,56637.0,56626.0,0.4795]
[1726058478150,0.0622,56642.0,56618.0,0.0807602]
[1726058478151,0.17594018,56627.0,56618.0,0.0053602]
[1726058478394,0.17594018,56624.0,56618.0,0.0053602]
[1726058478619,0.00441628,56623.0,56618.0,0.0053602]
[1726058479067,0.01600143,56622.0,56618.0,0.0053602]
[1726058479495,0.02041747,56622.0,56618.0,0.0063602]
[1726058479719,0.19627594,56621.0,56618.0,0.0063602]
[1726058479957,0.00441623,56620.0,56618.0,0.0063602]
[1726058480166,0.28634018,56619.0,56618.0,0.0063602]
[1726058480386,0.27230042,56619.0,56618.0,0.0063602]
[1726058480835,0.27230042,56619.0,56618.0,0.0053602]
[1726058481057,0.19190042,56619.0,56618.0,0.0053602]
[1726058481969,0.19790042,56619.0,56618.0,0.0053602]
[1726058482198,0.20231686,56619.0,56618.0,0.0053602]
[1726058482432,0.20431686,56619.0,56618.0,0.0053602]
[1726058482677,0.20831686,56619.0,56618.0,0.0053602]
[1726058482882,0.19590042,56619.0,56618.0,0.0053602]
[1726058483103,0.20190042,56619.0,56618.0,0.0053602]
[1726058483565,0.22253211,56619.0,56618.0,0.0053602]
[1726058484215,0.22694866,56619.0,56618.0,0.0053602]
[1726058484696,0.20190042,56619.0,56618.0,0.0053602]
[1726058484929,0.20190042,56619.0,56618.0,0.0677602]
[1726058485394,0.20190042,56619.0,56618.0,0.0053602]
[1726058487821,0.02596024,56619.0,56618.0,0.1475602]
[1726058488272,0.01,56619.0,56618.0,0.1475602]
[1726058488724,0.006,56619.0,56618.0,0.1475602]
[1726058488990,0.0044152,56632.0,56618.0,0.1475602]
[1726058489206,0.2240917,56631.0,56618.0,0.1475602]
[1726058489422,0.001,56619.0,56618.0,0.1475602]
[1726058490165,0.077,56641.0,56618.0,0.1475602]
[1726058490405,0.52782518,56637.0,56628.0,0.0646]
[1726058490634,0.17594018,56636.0,56628.0,0.0646]
[1726058491081,0.01601303,56635.0,56628.0,0.0646]
[1726058491523,0.077119,56646.0,56628.0,0.0646]
[1726058491524,0.000819,56646.0,56632.0,0.33227322]
[1726058491751,0.01601303,56634.0,56632.0,0.33227322]
[1726058491968,0.00441424,56644.0,56628.0,0.0646]
[1726058492206,0.0486109,56646.0,56628.0,0.16813139]
[1726058492207,0.001,56636.0,56628.0,0.16813139]
[1726058492498,0.19195321,56643.0,56628.0,0.1646]
[1726058492726,0.17594018,56643.0,56628.0,0.1646]
[1726058493177,0.01601303,56642.0,56628.0,0.1646]
[1726058493417,0.17594018,56641.0,56628.0,0.1646]
[1726058494095,0.01601303,56640.0,56632.0,0.33227322]
[1726058494302,0.19195321,56640.0,56632.0,0.33227322]
[1726058494535,0.01,56644.0,56637.0,0.33227322]
[1726058494764,0.01601303,56639.0,56638.0,0.0607]
[1726058494989,0.18394018,56644.0,56638.0,0.0607]
[1726058495235,0.01601303,56639.0,56638.0,0.0607]
[1726058495430,0.000819,56646.0,56638.0,0.1404]
[1726058495653,0.01622355,56639.0,56638.0,0.1404]
[1726058495885,0.004,56640.0,56638.0,0.1404]
[1726058496571,0.004,56640.0,56638.0,0.31891846]
[1726058496577,0.004,56640.0,56638.0,0.31634018]
[1726058496815,0.000819,56646.0,56639.0,0.32894018]
[1726058497033,0.000819,56646.0,56643.0,0.33227322]
[1726058497249,0.000819,56646.0,56644.0,0.32124018]
[1726058497461,0.000819,56646.0,56644.0,0.44424018]
[1726058498399,0.001819,56646.0,56644.0,0.44424018]
[1726058498634,0.001819,56646.0,56645.0,0.0628]
[1726058498878,0.52782518,56670.0,56645.0,0.34846992]
[1726058499113,0.52782518,56670.0,56661.0,0.0659]
[1726058499589,0.0798,56676.0,56661.0,0.0659]
[1726058499802,0.17594018,56662.0,56655.0,0.0661]
[1726058500302,0.01664014,56661.0,56655.0,0.0661]
[1726058501953,0.01664014,56661.0,56655.0,0.0691]
[1726058502200,0.000818,56663.0,56655.0,0.0691]
[1726058502456,0.17594018,56662.0,56655.0,0.0691]
[1726058502913,0.01386246,56661.0,56655.0,0.0691]
[1726058503370,0.01386246,56661.0,56655.0,0.0701]
[1726058503588,0.01386246,56661.0,56655.0,0.0691]
[1726058503589,0.01416136,56661.0,56655.0,0.0691]
[1726058504325,0.01416136,56661.0,56655.0,0.0661]
[1726058504551,0.27669977,56660.0,56655.0,0.001]
[1726058504774,0.27146983,56660.0,56655.0,0.001]
[1726058504989,0.27146983,56660.0,56648.0,0.0605]
[1726058505203,0.27146983,56660.0,56655.0,0.003]
[1726058505440,0.00441321,56659.0,56655.0,0.003]
[1726058505661,0.17594018,56657.0,56655.0,0.004]
[1726058505919,0.26215388,56656.0,56636.0,0.58822518]
[1726058506157,0.17594018,56651.0,56636.0,0.58822518]
[1726058506628,0.0182759,56650.0,56636.0,0.0604]
[1726058506873,0.0801,56648.0,56625.0,0.33211637]
[1726058507137,0.0801,56648.0,56629.0,0.063]
[1726058507138,0.1803544,56647.0,56629.0,0.063]
[1726058507358,0.19421641,56647.0,56629.0,0.063]
[1726058507853,0.17594018,56646.0,56629.0,0.063]
[1726058508159,0.17594018,56646.0,56622.0,0.481138]
[1726058508160,0.17594018,56643.0,56623.0,0.0653]
[1726058508396,0.00441467,56642.0,56623.0,0.0653]
[1726058508639,0.00441467,56642.0,56629.0,0.001]
[1726058508640,0.17594018,56641.0,56629.0,0.001]
[1726058508884,0.00441469,56640.0,56629.0,0.001]
[1726058509126,0.00441469,56640.0,56623.0,0.0653]
[1726058509127,0.25544018,56639.0,56623.0,0.0653]
[1726058509374,0.17594018,56636.0,56622.0,0.001638]
[1726058509614,0.03040087,56635.0,56623.0,0.001]
[1726058509847,0.17594018,56633.0,56623.0,0.001]
[1726058510086,0.0683156,56632.0,56623.0,0.001]
[1726058510333,0.17594018,56631.0,56623.0,0.001]
[1726058510575,0.00441554,56630.0,56623.0,0.001]
[1726058510814,0.17594018,56629.0,56623.0,0.001]
[1726058511270,0.17594018,56629.0,56622.0,0.001638]
[1726058511497,0.01386201,56628.0,56622.0,0.001638]
[1726058511765,0.19892676,56627.0,56622.0,0.001638]
[1726058512236,0.01386201,56626.0,56622.0,0.001638]
[1726058512487,0.17594018,56625.0,56623.0,0.001]
[1726058512955,0.08751555,56624.0,56623.0,0.001]
[1726058513172,0.27731774,56624.0,56622.0,0.001638]
[1726058513394,0.18663391,56623.0,56622.0,0.002638]
[1726058513611,0.19019842,56623.0,56622.0,0.002638]
[1726058514089,0.20406043,56623.0,56622.0,0.002638]
[1726058514342,0.1933667,56623.0,56622.0,0.002638]
[1726058514577,0.1933667,56623.0,56622.0,0.001638]
[1726058515511,0.2013667,56623.0,56622.0,0.001638]
[1726058516270,0.2073667,56623.0,56622.0,0.002638]
[1726058516537,0.30282501,56623.0,56622.0,0.002638]
[1726058516785,0.09,56622.0,56621.0,0.00311662]
[1726058517045,0.41995694,56622.0,56621.0,0.00311662]
[1726058517261,0.39909168,56622.0,56621.0,0.00311662]
[1726058517473,0.41641085,56622.0,56621.0,0.00311662]
[1726058517943,0.26909168,56622.0,56621.0,0.00311662]
[1726058518197,0.28309168,56622.0,56621.0,0.00311662]
[1726058518421,0.28750771,56622.0,56621.0,0.00311662]
[1726058518647,0.30150771,56622.0,56621.0,0.00311662]
[1726058518883,0.31550771,56622.0,56621.0,0.00311662]
[1726058519133,0.28750771,56622.0,56621.0,0.00311662]
[1726058519365,0.20349168,56622.0,56621.0,0.00311662]
[1726058519629,0.0275515,56622.0,56621.0,0.06561662]
[1726058519845,0.20349168,56622.0,56621.0,0.00311662]
[1726058520305,0.22384085,56622.0,56621.0,0.00311662]
[1726058520540,0.28774085,56622.0,56621.0,0.00311662]
[1726058520790,0.29215714,56622.0,56621.0,0.00311662]
[1726058521018,0.35485714,56622.0,56621.0,0.00311662]
[1726058521253,0.4098572,56622.0,56621.0,0.00311662]
[1726058521742,0.5448572,56622.0,56621.0,0.00311662]
[1726058522212,0.5288572,56622.0,56621.0,0.00311662]
[1726058522447,0.5588572,56622.0,56621.0,0.00311662]
[1726058522687,0.5608572,56622.0,56621.0,0.00311662]
[1726058522924,0.5468572,56622.0,56621.0,0.00311662]
[1726058523156,0.5608572,56622.0,56621.0,0.00311662]
[1726058524130,0.5838572,56622.0,56621.0,0.00311662]
[1726058524624,0.5818572,56622.0,56621.0,0.00311662]
[1726058524868,0.45809168,56622.0,56621.0,0.00311662]
[1726058525085,0.35809168,56622.0,56621.0,0.00311662]
[1726058525302,0.73111704,56622.0,56621.0,0.00311662]
[1726058525559,1.06323341,56622.0,56621.0,0.00311662]
[1726058526039,1.40245241,56622.0,56621.0,0.00311662]
[1726058526270,1.22540296,56622.0,56621.0,0.00311662]
[1726058526517,1.04679396,56622.0,56621.0,0.00311662]
[1726058526761,0.44850804,56622.0,56621.0,0.00475462]
[1726058527019,0.28019168,56622.0,56621.0,0.00475462]
[1726058527276,0.20349168,56622.0,56621.0,0.00475462]
[1726058527546,0.20431068,56622.0,56621.0,0.00475462]
[1726058527789,0.0423705,56622.0,56621.0,0.00475462]
[1726058528031,0.028819,56622.0,56621.0,0.00475462]
[1726058528281,0.000819,56622.0,56621.0,0.00475462]
[1726058528538,0.014819,56622.0,56621.0,0.00475462]
[1726058528781,0.014819,56622.0,56621.0,0.06953614]
[1726058529279,0.015819,56622.0,56621.0,0.07153614]
[1726058529525,0.015819,56622.0,56621.0,0.16953614]
[1726058529526,0.014819,56622.0,56621.0,0.16953614]
[1726058529760,0.000819,56622.0,56621.0,0.16953614]
[1726058530006,0.001819,56622.0,56621.0,0.17053614]
[1726058530735,0.001819,56622.0,56621.0,0.27613614]
[1726058530981,0.002819,56622.0,56621.0,1.77713614]
[1726058531238,0.001819,56622.0,56621.0,1.75055462]
[1726058531473,0.000819,56622.0,56621.0,1.74955462]
[1726058531709,0.002819,56622.0,56621.0,0.25255462]
[1726058532180,0.003819,56622.0,56621.0,0.25355462]
[1726058532420,0.002819,56622.0,56621.0,0.25155462]
[1726058532657,0.003819,56622.0,56621.0,0.25355462]
[1726058532904,0.003819,56622.0,56621.0,0.27655462]
[1726058533150,0.003819,56622.0,56621.0,0.4524948]
[1726058533392,0.003819,56622.0,56621.0,0.25355462]
[1726058535121,0.003819,56622.0,56621.0,0.25708642]
[1726058535352,0.003819,56622.0,56621.0,0.25355462]
[1726058535591,0.003819,56622.0,56621.0,0.25708625]
[1726058535847,0.52782518,56653.0,56625.0,0.1457]
[1726058536099,0.52782518,56653.0,56623.0,0.06]
[1726058536100,0.52782518,56637.0,56632.0,0.33211637]
[1726058536351,0.18875198,56652.0,56633.0,0.1]
[1726058536591,0.18875198,56652.0,56634.0,0.00353104]
[1726058536826,0.0044138,56651.0,56634.0,0.065]
[1726058537054,0.17594018,56650.0,56634.0,0.065]
[1726058537524,0.008,56637.0,56634.0,0.065]
[1726058537763,0.17594018,56650.0,56634.0,0.065]
[1726058538001,0.013118,56636.0,56634.0,0.065]
[1726058538245,0.17594018,56650.0,56634.0,0.065]
[1726058538246,0.180354,56650.0,56634.0,0.066]
[1726058538490,0.17594018,56647.0,56634.0,0.065]
[1726058538976,0.001,56637.0,56634.0,0.07]
[1726058539435,0.001,56636.0,56634.0,0.079]
[1726058539914,0.001,56637.0,56634.0,0.07]
[1726058540862,0.001,56636.0,56634.0,0.077]
[1726058541092,0.001,56637.0,56634.0,0.065]
[1726058541093,0.000819,56637.0,56634.0,0.065]
[1726058541366,0.001819,56637.0,56634.0,0.072]
[1726058541576,0.001819,56637.0,56634.0,0.077]
[1726058542045,0.17675918,56637.0,56634.0,0.005]
[1726058542529,0.01315157,56636.0,56634.0,0.005]
[1726058542768,0.01315157,56636.0,56634.0,0.008]
[1726058542986,0.01315157,56636.0,56634.0,0.013]
[1726058543949,0.25694018,56635.0,56634.0,0.005]
[1726058544401,0.27009175,56635.0,56634.0,0.001]
[1726058544623,0.27009175,56635.0,56623.0,0.0653]
[1726058544840,0.27009175,56635.0,56634.0,0.001]
[1726058545062,0.27450633,56635.0,56634.0,0.001]
[1726058545556,0.28250633,56635.0,56634.0,0.001]
[1726058546669,0.27809175,56635.0,56634.0,0.001]
[1726058548086,0.19709175,56635.0,56634.0,0.001]
[1726058548292,0.18909175,56635.0,56624.0,0.082]
[1726058548502,0.00441481,56634.0,56621.0,0.07085462]
[1726058548727,0.18904575,56633.0,56621.0,0.07085462]
[1726058549173,0.02024606,56632.0,56621.0,0.07085462]
[1726058549384,0.17594018,56631.0,56621.0,0.07085462]
[1726058549589,0.18904575,56631.0,56621.0,0.07085462]
[1726058550819,0.19004575,56631.0,56621.0,0.07085462]
[1726058551726,0.0816,56630.0,56621.0,0.00575462]
[1726058551963,0.17594018,56629.0,56621.0,0.00575462]
[1726058552180,0.0626,56628.0,56621.0,0.00575462]
[1726058552403,0.17594018,56627.0,56621.0,0.00575462]
[1726058552622,0.18693672,56627.0,56621.0,0.00575462]
[1726058553328,0.0761,56623.0,56621.0,0.00575462]
[1726058553566,0.23921351,56622.0,56621.0,0.00575462]
[1726058553994,0.25015868,56622.0,56621.0,0.00475462]
[1726058554427,0.49465868,56622.0,56621.0,0.00775462]
[1726058554655,0.49265868,56622.0,56621.0,0.00675462]
[1726058554882,0.49265868,56622.0,56621.0,0.00475462]
[1726058555120,0.50465868,56622.0,56621.0,0.00575462]
[1726058555336,0.49265868,56622.0,56621.0,0.00475462]
[1726058555560,0.34138535,56622.0,56621.0,0.00575462]
[1726058555795,0.34580156,56622.0,56621.0,0.00575462]
[1726058556711,0.36180156,56622.0,56621.0,0.00675462]
[1726058557189,0.34780156,56622.0,56621.0,0.00575462]
[1726058557422,0.44245315,56622.0,56621.0,0.00575462]
[1726058557891,0.45645315,56622.0,56621.0,0.00675462]
[1726058558360,0.45645315,56622.0,56621.0,0.00575462]
[1726058558361,0.34338535,56622.0,56621.0,0.00575462]
[1726058558590,0.35738535,56622.0,56621.0,0.00675462]
[1726058558818,0.36180185,56622.0,56621.0,0.00675462]
[1726058559075,0.03,56620.0,56618.0,0.001638]
[1726058559325,0.80109243,56619.0,56618.0,0.001638]
[1726058559548,1.64826175,56619.0,56618.0,0.001638]
[1726058559793,1.31802375,56619.0,56618.0,0.001638]
[1726058560444,0.99478575,56619.0,56618.0,0.002638]
[1726058560707,1.2336553,56619.0,56618.0,0.002638]
[1726058560963,1.0320363,56619.0,56618.0,0.001638]
[1726058561179,1.0460363,56619.0,56618.0,0.002638]
[1726058561396,1.0460363,56619.0,56618.0,0.003638]
[1726058561621,1.0480363,56619.0,56618.0,0.003638]
[1726058561836,1.0480363,56619.0,56618.0,0.002638]
[1726058561837,1.2246553,56619.0,56618.0,0.002638]
[1726058562057,1.6008933,56619.0,56618.0,0.002638]
[1726058562273,1.2606553,56619.0,56618.0,0.003638]
[1726058562493,1.0840363,56619.0,56618.0,0.003638]
[1726058562677,1.02461942,56619.0,56618.0,0.003638]
[1726058562887,0.66250305,56619.0,56618.0,0.003638]
[1726058563057,0.4863335,56619.0,56618.0,0.003638]
[1726058563632,0.99506887,56619.0,56618.0,0.003638]
[1726058563842,0.78844987,56619.0,56618.0,0.003638]
[1726058564071,1.26396887,56619.0,56618.0,0.003638]
[1726058564299,1.07806887,56619.0,56618.0,0.003638]
[1726058564565,1.05461942,56619.0,56618.0,0.003638]
[1726058565444,1.02461942,56619.0,56618.0,0.003638]
[1726058565677,0.81844987,56619.0,56618.0,0.003638]
[1726058566537,0.82044987,56619.0,56618.0,0.003638]
[1726058567206,0.81844987,56619.0,56618.0,0.003638]
[1726058568080,0.2136335,56619.0,56618.0,0.003638]
[1726058568593,0.03769332,56619.0,56618.0,0.144938]
[1726058568777,0.027,56619.0,56618.0,0.144938]
[1726058569236,0.014,56619.0,56618.0,0.143938]
[1726058569453,0.02405591,56619.0,56618.0,0.143938]
[1726058570168,0.02405591,56619.0,56618.0,0.063638]
[1726058570389,0.01005591,56619.0,56618.0,0.062638]
[1726058570532,0.009,56619.0,56618.0,0.063638]
[1726058570717,0.016,56619.0,56618.0,0.064638]
[1726058570943,0.007,56619.0,56618.0,0.063638]
[1726058571153,0.000818,56622.0,56618.0,0.062638]
[1726058571784,0.004,56619.0,56618.0,0.062638]
[1726058571994,0.004,56619.0,56618.0,0.064638]
[1726058572651,0.004,56619.0,56618.0,0.062638]
[1726058573311,0.004,56619.0,56618.0,0.138138]
[1726058573561,0.004,56619.0,56618.0,0.47025437]
[1726058573772,0.004,56619.0,56618.0,0.57125437]
[1726058573987,0.010818,56622.0,56618.0,0.57025437]
[1726058574206,0.020818,56622.0,56618.0,0.47125437]
[1726058574415,0.009,56619.0,56618.0,0.47225437]
[1726058574624,0.020818,56622.0,56618.0,0.57025437]
[1726058574625,0.000818,56622.0,56618.0,0.57025437]
[1726058574824,0.000818,56622.0,56619.0,0.0634]
[1726058575705,0.001818,56622.0,56619.0,0.0634]
[1726058576876,0.000818,56622.0,56619.0,0.0634]
[1726058577079,0.001818,56622.0,56619.0,0.0754]
[1726058577294,0.002818,56622.0,56619.0,0.0884]
[1726058578164,0.001818,56622.0,56619.0,0.0754]
[1726058578384,0.001818,56622.0,56619.0,0.0634]
[1726058578385,0.000818,56622.0,56619.0,0.0634]
[1726058578600,0.002818,56622.0,56619.0,0.0634]
[1726058578837,0.006818,56622.0,56619.0,0.0634]
[1726058579707,0.006818,56622.0,56619.0,0.0434]
[1726058580225,0.17875818,56622.0,56618.0,0.001638]
[1726058580445,0.1982315,56621.0,56619.0,0.009]
[1726058580692,0.18634981,56621.0,56619.0,0.009]
[1726058580946,0.19076562,56621.0,56619.0,0.009]
[1726058581171,0.1416,56620.0,56619.0,0.009]